Cogmind - Beta 15 @@@ ROGUE MODE // 2025.05.24 @ 20:43:43 Player: celerysam Result: Destroyed by G-47 Trooper with Particle Gun Performance ------------- Evolutions (0) 0 Regions Visited (1) 200 Robots Destroyed (8) 40 Value Destroyed (182) 182 Prototype IDs (0) 0 Alien Tech Used (0) 0 Bonus (0) 0 TOTAL SCORE: 422 Bonus ------- None Cogmind --------- Core Integrity 0/250 Matter 290/300 Energy 77/100 System Corruption 0% Temperature Warm (167) Movement Walking (120) Location -10/Materials Parts ------- > --- POWER (1) -------- (None) > --- PROPULSION (2) --- Aluminum Leg > --- UTILITY (2) ------ Small Storage Unit Visual Processing Unit > --- WEAPON (2) ------- Small Laser > --- INVENTORY (8) ---- Ion Engine Light Treads Light Treads Light Treads Wheel Compact Wheel Mining Laser Peak State ------------ > --- POWER ------------ Light Ion Engine > --- PROPULSION ------- Aluminum Leg Aluminum Leg > --- UTILITY ---------- Small Storage Unit Visual Processing Unit > --- WEAPON ----------- Medium Laser Small Laser > --- INVENTORY -------- Ion Engine Light Treads Light Treads Light Treads Wheel Compact Wheel Small Laser Mining Laser [Rating: 8] Favorites ----------- Power Light Ion Engine Engine Light Ion Engine Propulsion Aluminum Leg Leg Aluminum Leg Utility Small Storage Unit Storage Small Storage Unit Processor Visual Processing Unit Weapon Small Laser Energy Gun Small Laser Build | -11 -10 ------- Run | Yrd Mat Slots Evolved . | . . Power . | . . Propulsion . | . . Utility . | . . Weapon . | . . Parts Attached 11 | 6 5 Power 2 | 1 1 Engine 2 | 1 1 Core . | . . Reactor . | . . Propulsion 3 | 2 1 Treads . | . . Leg 3 | 2 1 Wheel . | . . Hover . | . . Flight . | . . Utility 2 | 1 1 Device . | . . Storage 1 | 1 . Processor 1 | . 1 Hackware . | . . Protection . | . . Artifact . | . . Weapon 4 | 2 2 Energy Gun 4 | 2 2 Energy Cannon . | . . Ballistic Gun . | . . Ballistic Cannon . | . . Launcher . | . . Special Weapon . | . . Impact Weapon . | . . Slashing Weapon . | . . Piercing Weapon . | . . Special Melee Weapon . | . . Unidentified Prototypes . | . . Parts Lost 5 | . 5 Power 2 | . 2 Propulsion 1 | . 1 Utility . | . . Weapon 2 | . 2 Highest Loss Streak 4 | . 4 To Critical Strikes . | . . Average Backups 7 | 4 7 Power . | . 1 Propulsion 4 | 3 4 Utility . | . . Weapon 1 | . 1 Tool/Special . | . . Unused Backups 7 | . 7 Power 1 | . 1 Propulsion 5 | . 5 Utility . | . . Weapon 1 | . 1 Tool/Special . | . . Average Slot Usage (%) 88 | . 88 Engine 10 | . 10 Leg 27 | . 27 Storage 14 | . 14 Processor 8 | . 8 Energy Gun 26 | . 26 Peak Build Rating 8 | 6 8 Average Rating 6 | 3 6 On Entrance 3 | . 6 Naked Turns . | . . Heaviest Build 13 | 11 13 Greatest Support 20 | 20 20 Greatest Overweight (x) 1 | . 1 Average Overweight (x) . | . . Largest Inventory Capacity 8 | 8 8 Average Capacity 7 | 6 8 Most Carried 8 | 6 8 Average Carried 7 | 4 7 Final Capacity 8 | 8 8 Final Carried 7 | 6 7 Class Distribution -------------------- 77% | Mutant 22% | Scavenger-Mutant Dominant Class ---------------- Mutant | -10/Materials Resources | -11 -10 ----------- Run | Yrd Mat Matter Collected 295 | 241 54 Remotely . | . . Salvage Created 250 | . 250 Parts 10 | . 10 Haulers Intercepted . | . . Recyclers Shooed 1 | . 1 Parts Field Recycled . | . . Retrieved Matter . | . . Parts Self-Destructed . | . . Prevented . | . . Kills | -11 -10 ------- Run | Yrd Mat Combat Hostiles Destroyed 7 | . 7 Guns 7 | . 7 Classes Destroyed 3 | . 3 Watcher 1 | . 1 Swarmer 3 | . 3 Grunt 4 | . 4 Best Kill Streak 3 | . 3 Combat Bots Only 3 | . 3 Max Kills in Single Turn 1 | . 1 Gunslinging . | . . Exploded . | . . Melee . | . . Uniques/NPCs Destroyed . | . . Combat | -11 -10 -------- Run | Yrd Mat Hostile Shots Fired 95 | . 95 Missed 25 | . 25 Hits 70 | . 70 Projectile 70 | . 70 Critical Strikes 3 | . 3 Damage Taken 806 | . 806 Core 253 | . 253 Absorbed by Shields . | . . Core Remaining (%) 100 | 100 . Volleys Fired 60 | . 60 Largest 2 | . 2 Hottest 90 | . 90 Shots Fired 102 | . 102 Gun 102 | . 102 Cannon . | . . Launcher . | . . Special . | . . Kinetic . | . . Thermal 102 | . 102 Explosive . | . . Electromagnetic . | . . Robot Hit Streak 9 | . 9 Robot Miss Streak 5 | . 5 Penetration Max . | . . Secondary Targets . | . . Shots Hit Robots 62 | . 62 Core Hits 16 | . 16 Critical Kills . | . . Critical Parts Destroyed . | . . Critical Strikes 5 | . 5 Burn 5 | . 5 Melee Attacks . | . . Impact . | . . Slashing . | . . Piercing . | . . Sneak Attacks . | . . Combat Hostiles . | . . Follow-up Attacks . | . . Damage Inflicted 733 | . 733 Guns 733 | . 733 Cannons . | . . Explosions . | . . Melee . | . . Ramming . | . . Kinetic . | . . Thermal 733 | . 733 Explosive . | . . Electromagnetic . | . . Impact . | . . Slashing . | . . Piercing . | . . Highest Corruption . | . . Average Corruption . | . . Corruption Purged . | . . Corruption Blocked . | . . Overload Shots . | . . Overflow Damage . | . . Projectiles . | . . Explosions . | . . Melee . | . . Knockbacks . | . . Impact . | . . Kinetic . | . . Secondary . | . . Self-Inflicted Damage . | . . Shots . | . . Rammed . | . . Targets Rammed . | . . Kicked . | . . Crushed . | . . Highest Temperature 270 | . 270 Average Temperature 117 | . 117 Received Heat Transfer 426 | . 426 Siege Activations . | . . Martial Activations . | . . Shielding Activations . | . . Robots Disrupted . | . . Combat Hostiles . | . . Robots Corrupted . | . . Combat Hostiles . | . . Parts Fried . | . . Impact Corruptions . | . . Robots Melted . | . . Combat Hostiles . | . . Parts Melted 6 | . 6 Heat Transferred 2269 | . 2269 Parts Sabotaged . | . . Parts Stolen . | . . Parts Stripped . | . . Power Chain Reactions . | . . Alert | -11 -10 ------- Run | Yrd Mat Maximum Alert Level . | . . Low Security (%) 100 | 100 100 Level 1 . | . . Level 2 . | . . Level 3 . | . . Level 4 . | . . Level 5 . | . . High Security . | . . Max Security . | . . Peak Influence 70 | . 70 Initial . | . . Average 20 | . 22 Influence Increases 198 | . 198 Destroy 0b10 Robot/C 140 | . 140 Destroy 0b10 Robot/NC 5 | . 5 Destroy Leader 22 | . 22 Destroy Structure 1 | . 1 Lose Combat Pursuer 30 | . 30 Influence Decreases 198 | . 198 Time Decay 159 | . 159 Lost Part 39 | . 39 Squads Dispatched 2 | . 2 Investigation 1 | . 1 Extermination . | . . Reinforcement 1 | . 1 Assault . | . . Garrison . | . . Intercept . | . . Searches Triggered . | . . Construction Impeded . | . . Haulers Reinforced . | . . Active Scanning Responses . | . . Cargo Convoy Interrupts . | . . Stealth | -11 -10 --------- Run | Yrd Mat Distress Signals . | . . Communications Jammed . | . . Distress Signals . | . . Times Spotted 13 | . 13 Peak Tracking Total 3 | . 3 Tactical Retreats 2 | . 2 Traps | -11 -10 ------- Run | Yrd Mat Traps Triggered 1 | . 1 Indirectly . | . . Trap Hack Attempts . | . . Triggered . | . . Disarmed . | . . Reprogrammed . | . . Reused . | . . Traps Extracted . | . . Installed . | . . Triggered . | . . Machines | -11 -10 ---------- Run | Yrd Mat Machines Disabled . | . . Max in Single Turn . | . . Machines Repaired . | . . Machines Dismantled . | . . Machines Sabotaged . | . . Overloaded Fab Kills . | . . Hacking | -11 -10 --------- Run | Yrd Mat Machines Accessed . | . . Terminals . | . . Fabricators . | . . Repair Stations . | . . Recycling Units . | . . Scanalyzers . | . . Garrison Access . | . . Total Hacks . | . . Successful . | . . Failed . | . . Catastrophic . | . . Database Lockouts . | . . Manual . | . . Terminals . | . . Fabricators . | . . Repair Stations . | . . Recycling Units . | . . Scanalyzers . | . . Garrison Access . | . . Terminal Hacks . | . . Fabricator Hacks . | . . Repair Station Hacks . | . . Recycling Unit Hacks . | . . Scanalyzer . | . . Garrison Access Hacks . | . . Unauthorized Hacks . | . . Terminals . | . . Fabricators . | . . Repair Stations . | . . Recycling Units . | . . Scanalyzers . | . . Garrison Access . | . . Data Cores Recovered . | . . Used . | . . Hacking Detections . | . . Full Trace Events . | . . Feedback Events . | . . Feedback Blocked . | . . Robot Schematics Acquired . | . . Robots Built . | . . Authchips . | . . Time . | . . Total Robot Build Rating . | . . Part Schematics Acquired . | . . Parts Built . | . . Authchips . | . . Time . | . . Total Part Build Rating . | . . Parts Repaired . | . . Time . | . . Parts Recycled . | . . Recycled Matter . | . . Retrieved Matter . | . . Retrieved Components . | . . Parts Scanalyzed . | . . Part Schematics Acquired . | . . Parts Damaged . | . . Bothacking | -11 -10 ------------ Run | Yrd Mat Used RIF Installer . | . . Robots Hacked . | . . Non-combat . | . . Combat . | . . Robot Hacks Applied . | . . Relay Couplers Released . | . . Fabnet Peak Effective % . | . . Robots Rewired . | . . Allies Hacked . | . . Hacks Repelled . | . . Allies | -11 -10 -------- Run | Yrd Mat Total Allies . | . . Largest Group . | . . Highest-Rated Group . | . . Highest-Rated Ally . | . . Total Orders . | . . Ally Attacks . | . . Total Damage . | . . Kills . | . . Allies Corrupted . | . . Allies Melted . | . . Intel | -11 -10 ------- Run | Yrd Mat Active Infowar (turns) 285 | . 285 Optics 285 | . 285 Robot Analysis Total . | . . Derelict Logs Recovered . | . . Drone Launches . | . . Drone Recoveries . | . . Exploration | -11 -10 ------------- Run | Yrd Mat Turns Passed 549 | 60 489 Spaces Moved 306 | 42 264 Core 8 | 8 . Treads . | . . Legs 298 | 34 264 Wheels . | . . Hover . | . . Flight . | . . Fastest Speed 50 | 50 120 Average Speed 118 | 106 120 Slowest Speed 190 | 120 190 Overloaded Moves . | . . Propulsion Burnouts . | . . Robots Hopped . | . . Potential Cave-ins . | . . Cave-ins Triggered . | . . Exploration Rate (%) 30 | 5 55 Regions Visited 1 Branch Regions . Pre-discovered Areas . | . . Known Exits Taken . | . . Unknown Exits Taken 1 | 1 . Scrap Searched . | . . Spaces Dug . | . . Terrain Destroyed . | . . Melee . | . . Projectile . | . . AOE . | . . Terrain Rammed . | . . Walls Destroyed . | . . Machines Disabled . | . . Actions | -11 -10 --------- Run | Yrd Mat Total 389 | 54 335 Wait 3 | 1 2 Move 305 | 41 264 Hop . | . . Pick Up 8 | 6 2 Fast Attach 8 | 6 2 Attach 1 | . 1 Detach . | . . Swap 2 | . 2 Drop 2 | . 2 Fire 60 | . 60 Melee . | . . Ram . | . . Kick . | . . Crush . | . . Escape Stasis . | . . Rewire . | . . Trap . | . . Miscellaneous . | . . Route ------- -11/Scrapyard -10/Materials (discovered 2 exits: [*Mat] / [*Min]) History --------- Turn | Location | Event 10 | -11/Scrapyard | Discovered new exit (range 16) 61 | -11/Scrapyard | Entered Materials 259 | -10/Materials | Discovered new exit (range 15) 305 | -10/Materials | Build established: Mutant 407 | -10/Materials | Discovered new exit (range 17) 498 | -10/Materials | Core integrity fell below 50% 535 | -10/Materials | Core integrity fell below 20% 550 | -10/Materials | Destroyed by G-47 Trooper with Particle Gun Last Messages --------------- 00472_ G-34 Mercenary suffers critical hit (Burn). 00478_ Heat Sink melted. 00478_ Sml. Laser melted. 00478_ Aluminum Leg melted. 00478_ G-34 Mercenary destroyed. 00486_ Acquired 20 matter. 00505_ R-06 Scavenger collects Aluminum Leg. 00506_ Med. Laser destroyed. 00511_ G-47 Trooper heat damages Imp. Heat Sink. 00512_ G-47 Trooper heat short circuits Lgt. Nuclear Core. 00517_ K-01 Serf collects debris. 00524_ Aluminum Leg destroyed. 00524_ Critical hit (Burn: +37). 00539_ K-01 Serf cleans the Matter Filter. 00540_ Ion Engine destroyed. 00545_ K-01 Serf collects debris. 00548_ Sml. Laser destroyed. 00549_ K-01 Serf cleans the Matter Filter. Map ----- +----------------------------------------------------+ | | | | | | | ??????????????????????????????????????????????? | | ??????????????????????????????????????????????? | | ??????????????????????????????????????????????? | | ????????????????????????????####??????????????? | | ???????????????????????????? #??????????????? | | ?????????????????????????#### #???????????????? | | ??????????????############ #???????????????? | | ??????????##### ## ####???????????????? | | ??????????# # ## #??????????????????? | | ??????????# < # ## #??????????????????? | | ??????????# # ## #??????????????????? | | ??????????# + ## #??????????????????? | | ??????????# # + %#??????????????????? | | ??????????# # ## #??????????????????? | | ??????????# # ## #??????????????????? | | ??????????# ############ #??????????????????? | | ??????????# #??????????# #??????????????????? | | ??????????# #??????????# #??????????????????? | | ??????????# #???######?# #??????????????????? | | ??????????# [ #??? ?# #??????#???????????? | | ????####??#=% #??? """""k# #### #???????????? | | ????# ?# #??? """"" # +???????????? | | ????# ?# #??? """"" @ #???????????? | | ????# # #??? """"" #g "#???????????? | | ????# # #??? """"" # ]][ T#???????????? | | ????# "Y" + #????"""""?# ][ "#???????????? | | ##??# """ # #????"""""?+ ][ #???????????? | | #??# # #???? ??# +???????????? | | #??####### ##??#####??# #???????????? | | ########## / #?????????# ###+##???????????? | | #?????????# #????????????????? | | " #?????????? +????????????????? | | #?????????? #????????????????? | | ######+### ! #?????????? #????????????????? | | # ## ##?????????? #????????????????? | | # """"" ## T#?????????? #????????????????? | | # """"" ## ##?????????? #????????????????? | | # """"" ## #??????????? ?????????????????? | | # """"" ## #??????????? ?????????????????? | | # """"" ## ???????????????????????????????? | | # ?""""" ## ??????????????????????????????? | | #??????? ## ?????????????????????????????? | | #????????# ?????????????????????????????? | | #????????? ????????????????????????????? | | #????????# "???????????????????????????? | | #????????# "T" ""??????????????????????????? | | ?????????# """ ??????????????????????????? | +----------------------------------------------------+ Best States ------------- Heat Dissipation 25 Energy Generation 10 Energy Capacity 250 Matter Stores 300 Matter Capacity 300 Sight Range 18 Terrain Scan Density 10 Evasion (%) 55 Item Schematics ----------------- None Robot Schematics ------------------ None Fabricated ------------ Nothing Repaired ---------- Nothing Alien Tech Used ----------------- None Achievements -------------- None Challenges ------------ None Game ------ Seed ScanDimensionalJammer Manual? 0 Play Time 00:07:56 Cumulative 262.5 hours Start 2025.05.24 @ 20:38:12 End 2025.05.24 @ 20:43:43 Sessions 1 Manual Loads 0 Difficulty Rogue Special Mode None Game No. 397 Rogue 397 Adventurer 0 Explorer 0 Win Type - Total 1 Types 1/0/0/0/0/0/0/0/0/0 Lore% 63 Gallery% 62 Achievement% 43 Wizard Run 0 Options --------- Layout 1 ASCII 0 Keyboard 0 Movement Mouse Keybinds 0 Fullscreen 2 Font 24/Smallcaps Map View 50x35 Zoom Use 0% Tactical HUD 1 Map Filters NONE Filters NONE Steam 1 RUN: b931fcb0-d74b-4f4d-a8f6-dcee163317c7